Cogmind - Beta 15 @@@ ROGUE MODE // 2025.08.24 @ 18:19:07 Player: Kaeinara Result: Destroyed by Y-54 Guardian with Gatling Laser Performance ------------- Evolutions (3) 1500 Regions Visited (6) 1200 Robots Destroyed (38) 190 Value Destroyed (1042) 1042 Prototype IDs (1) 20 Alien Tech Used (0) 0 Bonus (89) 89 TOTAL SCORE: 4041 Bonus ------- Follower Combat Kills 89 Cogmind --------- Core Integrity 0/700 Matter 228/300 Energy 100/100 System Corruption 5% Temperature Cool (6) Movement Core (350) Ox6 Location -7/Factory Parts ------- > --- POWER (1) -------- (None) > --- PROPULSION (4) --- (None) > --- UTILITY (6) ------ Large Storage Unit Signal Interpreter Transport Network Coupler > --- WEAPON (2) ------- (None) > --- INVENTORY (15) --- Improved Deuterium Engine Heat Sink Weight Redist. System Visual Processing Unit Improved Terrain Scan Processor Force Booster System Shield Improved Field Recycling Unit (0) Peak State ------------ > --- POWER ------------ Micro Nuclear Core > --- PROPULSION ------- Carbon-fiber Leg Titanium Leg VSS Leg VSS Leg > --- UTILITY ---------- Large Storage Unit Transport Network Coupler Improved Targeting Computer Improved Melee Analysis Suite > --- WEAPON ----------- Minigun Scythe > --- INVENTORY -------- Micro Nuclear Core Aluminum Leg Aluminum Leg Aluminum Leg Aluminum Leg Heat Sink Weight Redist. System Visual Processing Unit Improved Sensor Array Signal Interpreter Improved Terrain Scan Processor System Shield Beam Rifle Improved EM Pulse Cannon Grenade Launcher [Rating: 33] Favorites ----------- Power Improved Ion Engine Engine Improved Ion Engine Power Core Micro Nuclear Core Propulsion Aluminum Leg Leg Aluminum Leg Utility Large Storage Unit Device Tractor Beam Storage Large Storage Unit Processor Transport Network Coupler Protection Light Armor Plating Weapon Assault Rifle Energy Gun EM Pulse Gun Energy Cannon Improved EM Pulse Cannon Ballistic Gun Assault Rifle Launcher Grenade Launcher Special Weapon Remote Datajack Slashing Weapon Scythe Special Melee Weapon Improved Datajack Build | -11 -10 -10 -9 -9 -8 -7 ------- Run | Yrd Mat Min Mat Min Mat Fac Slots Evolved 6 | . . . 2 . 2 2 Power . | . . . . . . . Propulsion 2 | . . . 2 . . . Utility 4 | . . . . . 2 2 Weapon . | . . . . . . . Parts Attached 48 | 6 4 1 6 . 22 9 Power 8 | 1 1 . 2 . 3 1 Engine 5 | 1 1 . 2 . . 1 Core 3 | . . . . . 3 . Reactor . | . . . . . . . Propulsion 13 | 2 1 . 1 . 8 1 Treads . | . . . . . . . Leg 13 | 2 1 . 1 . 8 1 Wheel . | . . . . . . . Hover . | . . . . . . . Flight . | . . . . . . . Utility 15 | 1 1 1 1 . 7 4 Device 5 | . 1 . . . 2 2 Storage 2 | 1 . 1 . . . . Processor 4 | . . . . . 3 1 Hackware . | . . . . . . . Protection 4 | . . . 1 . 2 1 Artifact . | . . . . . . . Weapon 12 | 2 1 . 2 . 4 3 Energy Gun 3 | 1 . . 1 . 1 . Energy Cannon 1 | . . . . . . 1 Ballistic Gun 4 | 1 . . 1 . 2 . Ballistic Cannon . | . . . . . . . Launcher 1 | . 1 . . . . . Special Weapon 1 | . . . . . . 1 Impact Weapon . | . . . . . . . Slashing Weapon 1 | . . . . . 1 . Piercing Weapon . | . . . . . . . Special Melee Weapon 1 | . . . . . . 1 Unidentified Prototypes . | . . . . . . . Parts Lost 33 | . . . 1 . 16 16 Power 5 | . . . 1 . 3 1 Propulsion 12 | . . . . . 6 6 Utility 8 | . . . . . 4 4 Weapon 8 | . . . . . 3 5 Highest Loss Streak 12 | . . . 1 . 7 12 To Critical Strikes . | . . . . . . . Average Backups 11 | 3 7 8 12 15 14 9 Power 1 | . 1 1 1 2 1 . Propulsion 1 | 2 2 2 . . 2 . Utility 6 | . 1 2 7 9 7 6 Weapon 2 | . 2 3 3 4 3 1 Tool/Special . | . . . . . . . Unused Backups 17 | . 4 . . . 6 7 Power 2 | . . . . . 1 1 Propulsion 4 | . 4 . . . . . Utility 10 | . . . . . 4 6 Weapon 1 | . . . . . 1 . Tool/Special . | . . . . . . . Average Slot Usage (%) 93 | . 95 100 99 100 98 74 Engine 6 | . 14 14 11 11 2 4 Core 2 | . . . . . 6 . Leg 32 | . 28 28 43 44 35 21 Device 5 | . 9 14 3 . 5 3 Storage 10 | . 14 14 11 11 9 7 Processor 9 | . . . . . 14 21 Protection 4 | . . . 7 11 5 4 Energy Gun 6 | . 13 14 11 11 2 . Energy Cannon 1 | . . . . . . 5 Ballistic Gun 8 | . 14 14 11 11 8 . Slashing Weapon 2 | . . . . . 6 . Peak Build Rating 33 | 6 7 7 13 13 33 27 Average Rating 17 | 4 6 7 12 13 23 22 On Entrance 8 | . 6 7 7 13 13 13 Naked Turns . | . . . . . . . Heaviest Build 43 | 12 15 30 35 35 39 43 Greatest Support 56 | 20 20 20 40 40 56 42 Greatest Overweight (x) 11 | 2 . 1 . . 1 11 Average Overweight (x) . | . . . . . . . Largest Inventory Capacity 15 | 8 8 15 15 15 15 15 Average Capacity 13 | 7 8 13 15 15 15 15 Most Carried 15 | 7 8 8 15 15 15 13 Average Carried 11 | 4 7 8 12 15 14 9 Final Capacity 15 | 8 8 15 15 15 15 15 Final Carried 15 | 6 8 8 15 15 14 8 Class Distribution -------------------- 53% | Scavenger-Mutant 36% | Mutant 10% | Skirmisher Dominant Class ---------------- Mutant | -10/Materials Mutant | -10/Mines Scavenger-Mutant | -9/Materials Scavenger-Mutant | -9/Mines Scavenger-Mutant | -8/Materials Skirmisher | -7/Factory Resources | -11 -10 -10 -9 -9 -8 -7 ----------- Run | Yrd Mat Min Mat Min Mat Fac Matter Collected 934 | 213 142 43 86 24 404 22 Remotely 226 | . 116 43 67 . . . Salvage Created 1285 | . 218 . 176 68 792 31 Parts 91 | . 21 . 18 7 43 2 Haulers Intercepted 2 | . 1 . 1 . . . Recyclers Shooed 1 | . . . . . 1 . Parts Field Recycled . | . . . . . . . Retrieved Matter . | . . . . . . . Parts Self-Destructed . | . . . . . . . Prevented . | . . . . . . . Kills | -11 -10 -10 -9 -9 -8 -7 ------- Run | Yrd Mat Min Mat Min Mat Fac Combat Hostiles Destroyed 28 | . 6 . 2 4 14 2 Melee 6 | . . . . . 6 . Guns 18 | . 4 . 2 4 7 1 Cannons 1 | . . . . . . 1 AOE 2 | . 2 . . . . . Classes Destroyed 11 | . 5 . 1 . 4 1 Builder 4 | . 2 . . . 2 . Hauler 2 | . 1 . 1 . . . Recycler 2 | . . . . . 2 . Watcher 2 | . 1 . 1 . . . Swarmer 10 | . 3 . . 4 3 . Grunt 10 | . 3 . . . 7 . Duelist 1 | . . . . . 1 . Sentry 3 | . . . 2 . . 1 Specialist 2 | . . . . . 2 . Hunter 1 | . . . . . 1 . Programmer 1 | . . . . . . 1 Best Kill Streak 8 | . 6 . 1 4 8 1 Combat Bots Only 5 | . 4 . 1 4 5 1 Max Kills in Single Turn 3 | . 2 . 1 1 3 1 Gunslinging . | . . . . . . . Exploded 1 | . 1 . . . . . Melee 1 | . . . . . 1 . Uniques/NPCs Destroyed . | . . . . . . . Combat | -11 -10 -10 -9 -9 -8 -7 -------- Run | Yrd Mat Min Mat Min Mat Fac Hostile Shots Fired 565 | . 34 . 15 32 179 305 Missed 196 | . 11 . 7 7 56 115 Hits 369 | . 23 . 8 25 123 190 Melee 6 | . . . . . 6 . Projectile 363 | . 23 . 8 25 117 190 Critical Strikes 4 | . . . . . 4 . Damage Taken 4221 | . 244 . 115 199 1999 1664 Core 1120 | . 53 . 15 15 336 701 Absorbed by Shields . | . . . . . . . Redirected to Shielding 103 | . . . . . . 103 Core Remaining (%) 77 | 100 . 78 . 92 38 . Volleys Fired 109 | . 16 . 7 8 57 21 Largest 2 | . 2 . 2 2 2 1 Hottest 76 | . 60 . 76 76 73 69 Shots Fired 158 | . 32 . 14 16 75 21 Gun 141 | . 29 . 14 16 75 7 Cannon 7 | . . . . . . 7 Launcher 8 | . 3 . . . . 5 Special 2 | . . . . . . 2 Kinetic 88 | . 16 . 7 8 57 . Thermal 19 | . . . 4 8 . 7 Explosive 8 | . 3 . . . . 5 Electromagnetic 41 | . 13 . 3 . 18 7 Robot Hit Streak 17 | . 5 . 10 6 8 17 Robot Miss Streak 3 | . 3 . 1 2 3 3 Penetration Max . | . . . . . . . Secondary Targets 4 | . 1 . . 2 1 . Max Gunslinging Chain 1 | . 1 . . 1 1 . Shots Hit Robots 120 | . 19 . 10 11 63 17 Core Hits 62 | . 14 . 6 4 29 9 Critical Kills . | . . . . . . . Critical Parts Destroyed . | . . . . . . . Critical Strikes 3 | . . . . . 3 . Corrupt 1 | . . . . . 1 . Sever 2 | . . . . . 2 . Melee Attacks 20 | . . . . . 18 2 Impact . | . . . . . . . Slashing 18 | . . . . . 18 . Piercing . | . . . . . . . Sneak Attacks 1 | . . . . . 1 . Combat Hostiles . | . . . . . . . Follow-up Attacks . | . . . . . . . Damage Inflicted 2679 | . 517 . 128 164 1509 361 Guns 1461 | . 228 . 128 164 876 65 Cannons 131 | . . . . . . 131 Explosions 642 | . 289 . . . 247 106 Melee 386 | . . . . . 386 . Ramming 59 | . . . . . . 59 Kinetic 827 | . 114 . 51 63 599 . Thermal 514 | . 57 . 44 101 247 65 Explosive 338 | . 232 . . . . 106 Electromagnetic 555 | . 114 . 33 . 277 131 Impact . | . . . . . . . Slashing 386 | . . . . . 386 . Piercing . | . . . . . . . Highest Corruption 5 | . . . . . . 5 Average Corruption 4 | . . . . . . 4 Corruption Purged . | . . . . . . . Corruption Blocked . | . . . . . . . Effects 3 | . . . . . . 3 Matter Fused 1 | . . . . . . 1 Energy Discharges 1 | . . . . . . 1 Data Loss (minor) 1 | . . . . . . 1 Overload Shots . | . . . . . . . Overflow Damage . | . . . . . . . Projectiles . | . . . . . . . Explosions . | . . . . . . . Melee . | . . . . . . . Knockbacks . | . . . . . . . Impact . | . . . . . . . Kinetic . | . . . . . . . Secondary . | . . . . . . . Self-Inflicted Damage 120 | . 29 . . . . 91 Shots 5 | . 2 . . . . 3 Rammed 9 | . . . . . . 9 Targets Rammed 30 | . . . . . . 30 Kicked 21 | . . . . . . 21 Crushed . | . . . . . . . Highest Temperature 164 | . 30 . 36 145 164 44 Average Temperature 41 | . 15 . 12 73 47 15 Received Heat Transfer 735 | . 60 . 27 . 306 342 Siege Activations . | . . . . . . . Martial Activations . | . . . . . . . Shielding Activations . | . . . . . . . Robots Disrupted . | . . . . . . . Combat Hostiles . | . . . . . . . Robots Corrupted 1 | . . . . . 1 . Combat Hostiles 1 | . . . . . 1 . Parts Fried . | . . . . . . . Impact Corruptions . | . . . . . . . Robots Melted . | . . . . . . . Combat Hostiles . | . . . . . . . Parts Melted 2 | . . . . 1 1 . Heat Transferred 818 | . 50 . 111 259 250 148 Parts Sabotaged . | . . . . . . . Parts Stolen . | . . . . . . . Parts Stripped . | . . . . . . . Power Chain Reactions 2 | . 1 . . . 1 . Alert | -11 -10 -10 -9 -9 -8 -7 ------- Run | Yrd Mat Min Mat Min Mat Fac Maximum Alert Level . | . . . . . . . Low Security (%) 100 | 100 100 100 100 100 100 100 Level 1 . | . . . . . . . Level 2 . | . . . . . . . Level 3 . | . . . . . . . Level 4 . | . . . . . . . Level 5 . | . . . . . . . High Security . | . . . . . . . Max Security . | . . . . . . . Peak Influence 119 | . 96 29 30 119 115 55 Initial 42 | . . 29 . 8 42 . Average 28 | . 26 3 4 77 53 3 Influence Increases 1151 | . 182 . 103 171 567 128 Destroy 0b10 Robot/C 660 | . 120 . 40 140 320 40 Destroy 0b10 Robot/NC 50 | . 20 . 10 . 20 . Destroy Leader 148 | . 24 . 24 20 60 20 Allied During Kill 21 | . . . . 11 10 . Successful Hack 31 | . . . 29 . 2 . Disable Machine 30 | . . . . . . 30 Destroy Structure 61 | . 18 . . . 5 38 Lose Combat Pursuer 150 | . . . . . 150 . Influence Decreases 1151 | . 106 76 81 84 676 128 Entered New Map 128 | . . 47 . 14 67 . Time Decay 779 | . 106 29 81 70 439 54 Lost Part 209 | . . . . . 135 74 Lost Ally 35 | . . . . . 35 . Squads Dispatched 8 | . 1 . . . 5 2 Investigation 2 | . 1 . . . 1 . Extermination 1 | . . . . . . 1 Reinforcement 5 | . . . . . 4 1 Assault . | . . . . . . . Garrison . | . . . . . . . Intercept . | . . . . . . . Searches Triggered . | . . . . . . . Construction Impeded . | . . . . . . . Haulers Reinforced 1 | . . . . . . 1 Active Scanning Responses . | . . . . . . . Cargo Convoy Interrupts . | . . . . . . . Stealth | -11 -10 -10 -9 -9 -8 -7 --------- Run | Yrd Mat Min Mat Min Mat Fac Distress Signals 7 | . 2 . 2 . 3 . Communications Jammed . | . . . . . . . Distress Signals . | . . . . . . . Times Spotted 60 | . 12 . 4 6 31 7 Peak Tracking Total 6 | . 5 . 3 4 6 5 Tactical Retreats 7 | . . . . . 7 . Traps | -11 -10 -10 -9 -9 -8 -7 ------- Run | Yrd Mat Min Mat Min Mat Fac Traps Triggered . | . . . . . . . Indirectly . | . . . . . . . Trap Hack Attempts . | . . . . . . . Triggered . | . . . . . . . Disarmed . | . . . . . . . Reprogrammed . | . . . . . . . Reused . | . . . . . . . Traps Extracted . | . . . . . . . Installed . | . . . . . . . Triggered . | . . . . . . . Machines | -11 -10 -10 -9 -9 -8 -7 ---------- Run | Yrd Mat Min Mat Min Mat Fac Machines Disabled 2 | . . . . . . 2 Max in Single Turn 1 | . . . . . . 1 Machines Repaired . | . . . . . . . Machines Dismantled . | . . . . . . . Machines Sabotaged . | . . . . . . . Overloaded Fab Kills . | . . . . . . . Hacking | -11 -10 -10 -9 -9 -8 -7 --------- Run | Yrd Mat Min Mat Min Mat Fac Machines Accessed 7 | . . . 4 . 3 . Terminals 6 | . . . 4 . 2 . Fabricators . | . . . . . . . Repair Stations . | . . . . . . . Recycling Units . | . . . . . . . Scanalyzers 1 | . . . . . 1 . Garrison Access . | . . . . . . . Total Hacks 14 | . . . 8 . 6 . Successful 9 | . . . 6 . 3 . Failed 5 | . . . 2 . 3 . Catastrophic 1 | . . . 1 . . . Database Lockouts . | . . . . . . . Manual 10 | . . . 8 . 2 . Terminals 12 | . . . 8 . 4 . Fabricators . | . . . . . . . Repair Stations . | . . . . . . . Recycling Units . | . . . . . . . Scanalyzers 2 | . . . . . 2 . Garrison Access . | . . . . . . . Terminal Hacks 2 | . . . 2 . . . Level Access Points 1 | . . . 1 . . . Branch Access Points 1 | . . . 1 . . . Fabricator Hacks . | . . . . . . . Repair Station Hacks . | . . . . . . . Recycling Unit Hacks . | . . . . . . . Scanalyzer 2 | . . . . . 2 . Insert Component 1 | . . . . . 1 . Analyze 1 | . . . . . 1 . Garrison Access Hacks . | . . . . . . . Unauthorized Hacks 5 | . . . 4 . 1 . Terminals 5 | . . . 4 . 1 . Botnet 5 | . . . 4 . 1 . Fabricators . | . . . . . . . Repair Stations . | . . . . . . . Recycling Units . | . . . . . . . Scanalyzers . | . . . . . . . Garrison Access . | . . . . . . . Data Cores Recovered . | . . . . . . . Used . | . . . . . . . Hacking Detections 6 | . . . 3 . 3 . Full Trace Events . | . . . . . . . Feedback Events . | . . . . . . . Feedback Blocked . | . . . . . . . Robot Schematics Acquired . | . . . . . . . Robots Built . | . . . . . . . Authchips . | . . . . . . . Time . | . . . . . . . Total Robot Build Rating . | . . . . . . . Part Schematics Acquired 1 | . . . . . 1 . Parts Built . | . . . . . . . Authchips . | . . . . . . . Time . | . . . . . . . Total Part Build Rating . | . . . . . . . Parts Repaired . | . . . . . . . Time . | . . . . . . . Parts Recycled . | . . . . . . . Recycled Matter . | . . . . . . . Retrieved Matter . | . . . . . . . Retrieved Components . | . . . . . . . Parts Scanalyzed 1 | . . . . . 1 . Part Schematics Acquired 1 | . . . . . 1 . Parts Damaged 1 | . . . . . 1 . Bothacking | -11 -10 -10 -9 -9 -8 -7 ------------ Run | Yrd Mat Min Mat Min Mat Fac Used RIF Installer . | . . . . . . . Robots Hacked 2 | . . . . . . 2 Non-combat . | . . . . . . . Combat 2 | . . . . . . 2 Robot Hacks Applied 4 | . . . . . . 4 parse_system 4 | . . . . . . 4 Relay Couplers Released . | . . . . . . . Fabnet Peak Effective % . | . . . . . . . Robots Rewired . | . . . . . . . Allies Hacked . | . . . . . . . Hacks Repelled . | . . . . . . . Allies | -11 -10 -10 -9 -9 -8 -7 -------- Run | Yrd Mat Min Mat Min Mat Fac Total Allies 3 | . . . . 3 . . Largest Group 3 | . . . . 3 3 . Highest-Rated Group 40 | . . . . 40 40 . Highest-Rated Ally 16 | . . . . 16 16 . Total Orders . | . . . . . . . Ally Attacks 17 | . . . . 6 11 . Total Damage 220 | . . . . 79 141 . Kills 5 | . . . . 3 2 . Allies Corrupted . | . . . . . . . Allies Melted . | . . . . . . . Intel | -11 -10 -10 -9 -9 -8 -7 ------- Run | Yrd Mat Min Mat Min Mat Fac Active Infowar (turns) 1758 | . . . . . 1140 618 Sensors 316 | . . . . . . 316 T.N.C. 1758 | . . . . . 1140 618 Robot Analysis Total . | . . . . . . . Derelict Logs Recovered 1 | . . 1 . . . . Drone Launches . | . . . . . . . Drone Recoveries . | . . . . . . . Exploration | -11 -10 -10 -9 -9 -8 -7 ------------- Run | Yrd Mat Min Mat Min Mat Fac Turns Passed 3066 | 64 304 294 489 157 1140 618 Spaces Moved 1495 | 38 101 180 303 84 664 125 Core 12 | 8 . . . . . 4 Treads . | . . . . . . . Legs 1483 | 30 101 180 303 84 664 121 Wheels . | . . . . . . . Hover . | . . . . . . . Flight . | . . . . . . . Fastest Speed 50 | 50 120 120 120 120 107 110 Average Speed 130 | 124 120 163 120 120 121 171 Slowest Speed 600 | 190 120 190 120 120 190 600 Overloaded Moves . | . . . . . . . Propulsion Burnouts . | . . . . . . . Robots Hopped . | . . . . . . . Potential Cave-ins . | . . . . . . . Cave-ins Triggered . | . . . . . . . Exploration Rate (%) 25 | 4 32 52 26 27 36 4 Regions Visited 6 Branch Regions 2 Pre-discovered Areas . | . . . . . . . Known Exits Taken 2 | . . . 1 1 . . Unknown Exits Taken 4 | 1 1 1 . . 1 . Scrap Searched 1 | . . 1 . . . . Spaces Dug . | . . . . . . . Terrain Destroyed 59 | . 14 . . . 4 41 Melee . | . . . . . . . Projectile . | . . . . . . . AOE 59 | . 14 . . . 4 41 Terrain Rammed . | . . . . . . . Walls Destroyed . | . . . . . . . Machines Disabled . | . . . . . . . Actions | -11 -10 -10 -9 -9 -8 -7 --------- Run | Yrd Mat Min Mat Min Mat Fac Total 2411 | 55 253 181 412 124 907 479 Wait 626 | . 120 . 86 33 110 277 Move 1489 | 37 100 179 302 83 663 125 Hop . | . . . . . . . Pick Up 57 | 12 6 . 10 . 21 8 Fast Attach 4 | . 2 . . . 2 . Attach 36 | 6 . . 3 . 13 14 Detach . | . . . . . . . Swap 19 | . 3 1 4 . 9 2 Drop 21 | . 6 1 . . 14 . Fire 109 | . 16 . 7 8 57 21 Melee 20 | . . . . . 18 2 Ram 9 | . . . . . . 9 Kick 21 | . . . . . . 21 Crush . | . . . . . . . Escape Stasis . | . . . . . . . Rewire . | . . . . . . . Trap . | . . . . . . . Miscellaneous . | . . . . . . . Route ------- -11/Scrapyard -10/Materials -10/Mines -9/Materials (discovered 4 exits: Mat x3 / *Min) -9/Mines -8/Materials -7/Factory History --------- Turn | Location | Event 12 | -11/Scrapyard | Discovered new exit (range 16) 65 | -11/Scrapyard | Entered Materials 341 | -10/Materials | Build established: Mutant 361 | -10/Materials | Discovered new exit (range 8) 369 | -10/Materials | Entered Mines 544 | -10/Mines | Learned Materials terminal intel 654 | -10/Mines | Discovered new exit (range 6) 663 | -10/Mines | Entered Materials 663 | -9/Materials | Evolved 2 slots: Propulsion x2 664 | -9/Materials | Loaded intel: 12 terminal locations 773 | -9/Materials | Identified exit to Mines 1010 | -9/Materials | Build established: Scavenger-Mutant 1059 | -9/Materials | Identified exit to Materials 1152 | -9/Materials | Entered Mines 1235 | -9/Mines | Assisted by bots powering up and referring to "LRC-V3" 1257 | -9/Mines | Discovered exit to Materials (range 14) 1309 | -9/Mines | Entered Materials 1309 | -8/Materials | Accompanied by 3 allies 1309 | -8/Materials | Evolved 2 slots: Utility x2 1532 | -8/Materials | Lost 3 allies 1561 | -8/Materials | Lost 3 parts (1p1n1u) 2436 | -8/Materials | Discovered new exit (range 10) 2444 | -8/Materials | Core integrity fell below 50% 2449 | -8/Materials | Entered Factory 2449 | -7/Factory | Evolved 2 slots: Utility x2 2478 | -7/Factory | Lost 7 parts (2p3n2w) 2650 | -7/Factory | Lost 4 parts (3n1u) 2969 | -7/Factory | Build established: Skirmisher 3019 | -7/Factory | Core integrity fell below 50% 3047 | -7/Factory | Core integrity fell below 20% 3067 | -7/Factory | Destroyed by Y-54 Guardian with Gatling Laser Last Messages --------------- Reading system data... 03023_ U-05 Engineer lays Concrete. 03026_ System corrupted: Energy discharge (-92). 03026_ U-05 Engineer lays Concrete. 03027_ Imp. Targeting Computer destroyed. 03034_ Imp. Power Shielding destroyed. 03034_ Imp. Deuterium Engine destroyed. 03036_ Slammed into Y-54 Guardian. 03037_ Remote Datajack destroyed. 03040_ Slammed into Y-54 Guardian. 03042_ System corrupted: Component data lost. 03044_ Slammed into Y-54 Guardian. 03044_ Destabilizing: System interference. 03044_ Signal Interpreter temporarily disabled. 03046_ The unstable cave ceiling collapses. 03046_ U-05 Engineer builds a Wall. 03047_ Slammed into Y-54 Guardian. 03058_ Destabilizing: Core damaged (-7). 03059_ System corrupted: Matter fused (-10). 03061_ Slammed into Y-54 Guardian. Map ----- +----------------------------------------------------+ | ?????????????????????????????????????????????????? | | ?????????????????????????????????????????????????? | | ?????????????????????????????????????????????????? | | ?????????????????????????????????????????????????? | | ?????????????????????????????????????????????????? | | ?????????????????????????????????????????????????? | | ??????????????##?????????????????????????????????? | | ????????????##### ###????????????????????????????? | | ??????????### # # ????????????????????????????? | | ??????????# ########????????????????????? | | ??????????# #????????????????????? | | ??????????# """ #????????????????????? | | ??????????# """ #????????????????????? | | ??????????# """ !#????????????????????? | | ??????????# # #????????????????????? | | ??????????# "" "" #????????????????????? | | #####?????# ""S"" #????????????????????? | | #?????# # """" #????????????????????? | | #?????## #????????????????????? | | ! #??????# ##+## ####????????????????????? | | ######### ! #?????????????????????? | | + % #?????????????????????? | | #######%## #?????????????????????? | | #?????# ## # ## #?????????????????????? | | #?????# ############ Y #?????????????????????? | | #?????# #??????????# @ #?????????????????????? | | #####?????# #??????????# l #?????????????????????? | | ??????????# #??????????# #?????????????????????? | | ??????????# #??????????# #?????????????????????? | | ########### #??????????# #?????????????????????? | | #?????????? g ?????????????????????? | | #############?????????? #????????????????????? | | ??????????????????????+ ????????????????????? | | ??????????????????????# ##?????????????a?????? | | ??????????????????????# #????????????????????? | | ????????????????????### ###????????????????????? | | ???????????????????????+#??????????????????????? | | ??????????????????????? ??????????????????????? | | ???????????????????????? ??????????????????????? | | ???????????????????????? ??????????????????????? | | ##???????????????????????] ??????????????????????? | | ????????????????????????? ??????????????????????? | | ?????????????????????????????????????????????????? | | ?????????????????????????????????????????????????? | | ?????????????????????????????????????????????????? | | ?????????????????????????????????????????????????? | | ?????????????????????????????????????????????????? | | ?????????????????????????????????????????????????? | | ?????????????????????????????????????????????????? | | ?????????????????????????????????????????????????? | +----------------------------------------------------+ Best States ------------- Heat Dissipation 34 Energy Generation 16 Energy Capacity 290 Matter Stores 300 Matter Capacity 300 Sight Range 16 Robot Scan Range 15 Terrain Scan Density 10 Armor Coverage 225 Power Shielding 66 Evasion (%) 55 Targeting Accuracy 6 Melee Accuracy 6 Recoil Reduction 4 Particle Charging 15 Item Schematics ----------------- Hvy. Ion Engine | -8/Materials | Scanalyzed Robot Schematics ------------------ None Fabricated ------------ Nothing Repaired ---------- Nothing Alien Tech Used ----------------- None Achievements -------------- None Challenges ------------ None Game ------ Seed PowerPhaseWings Manual? 0 Play Time 00:34:51 Cumulative 34.1 hours Start 2025.08.24 @ 17:20:27 End 2025.08.24 @ 18:19:07 Sessions 1 Manual Loads 0 Difficulty Rogue Special Mode None Game No. 57 Rogue 57 Adventurer 0 Explorer 0 Win Type - Total 0 Types 0/0/0/0/0/0/0/0/0/0 Lore% 16 Gallery% 27 Achievement% 21 Wizard Run 0 Options --------- Layout 1 ASCII 0 Keyboard 0 Movement Mouse Keybinds 0 Fullscreen 1 Font 24/Smallcaps Map View 50x35 Zoom Use 0% Tactical HUD 1 Map Filters NONE Filters NONE Steam 1 RUN: 47296c01-3f9f-41d8-ac08-f7f0087f0ec0